bitfinex-derivatives/quotes_BNBF0:USTF0_20250511
["timestamp","ask_amount","ask_price","bid_price","bid_amount"]
[1746973322906,0.26726571,651.29,650.02,1.17863572]
[1746973323403,0.26726571,651.29,650.03,0.28209378]
[1746973323707,0.26726571,651.29,650.04,1.17863572]
[1746973324002,0.26726571,651.29,650.05,0.28209378]
[1746973324209,0.307064,651.33,650.06,1.17863572]
[1746973324700,0.267277,651.28,650.07,0.28209378]
[1746973325006,0.267277,651.28,650.08,1.17863572]
[1746973325707,0.267277,651.28,650.09,0.28209378]
[1746973325909,0.267277,651.28,650.1,1.17863572]
[1746973326307,0.267277,651.28,650.11,0.28209378]
[1746973326607,0.267277,651.28,650.12,1.17863572]
[1746973326908,0.267277,651.28,650.13,0.28209378]
[1746973327208,0.267277,651.28,650.14,1.17863572]
[1746973327609,0.267277,651.28,650.15,0.28209378]
[1746973328108,0.267277,651.28,648.9,0.88248161]
[1746973328308,0.267277,651.28,650.16,1.18153455]
[1746973328808,0.267277,651.28,650.17,1.46362833]
[1746973329111,0.267277,651.28,650.18,1.46362833]
[1746973329408,0.267277,651.28,650.19,0.28209378]
[1746973329811,0.267277,651.28,650.2,1.46362833]
[1746973330109,0.267277,651.28,650.21,0.28209378]
[1746973330309,0.267277,651.28,650.22,1.18153455]
[1746973330503,0.267277,651.28,650.22,1.46362833]
[1746973330703,0.267277,651.28,650.23,1.46362833]
[1746973331010,0.267277,651.28,650.24,0.28209378]
[1746973331210,0.267277,651.28,650.25,1.18153455]
[1746973331403,0.267277,651.28,650.25,1.46362833]
[1746973331603,0.267277,651.28,650.26,1.18153455]
[1746973331804,0.267277,651.28,650.26,1.46362833]
[1746973332111,0.267277,651.28,650.27,1.46362833]
[1746973332305,0.307064,651.33,650.27,1.46362833]
[1746973332509,0.307064,651.33,650.28,0.28209378]
[1746973332711,0.307064,651.33,650.29,1.18153455]
[1746973332911,0.307064,651.33,650.29,1.46362833]
[1746973333214,0.307064,651.33,650.3,1.46362833]
[1746973333512,0.307064,651.33,650.31,0.28209378]
[1746973333712,0.307064,651.33,650.32,1.18153455]
[1746973334008,0.307064,651.33,650.33,1.46362833]
[1746973334413,0.307064,651.33,650.34,0.28209378]
[1746973334612,0.307064,651.33,650.34,1.46362833]
[1746973334913,0.307064,651.33,650.35,0.28209378]
[1746973335213,0.307064,651.33,650.36,1.18153455]
[1746973335715,0.307064,651.33,650.37,1.18153455]
[1746973335910,0.307064,651.33,650.38,1.18153455]
[1746973336112,0.307064,651.33,650.39,0.28209378]
[1746973336714,0.307064,651.33,649.4,0.88248161]
[1746973336914,0.307064,651.33,649.41,1.18278068]
[1746973337115,0.307064,651.33,649.41,2.06526229]
[1746973337316,0.307064,651.33,649.42,1.18278068]
[1746973337516,0.307064,651.33,649.43,1.18278068]
[1746973337915,0.307064,651.33,649.44,1.78312735]
[1746973338116,0.307064,651.33,649.44,2.06520069]
[1746973338319,0.307064,651.33,649.45,2.06520069]
[1746973338618,0.307064,651.33,649.45,2.33244793]
[1746973338819,0.307064,651.33,649.46,1.46485402]
[1746973339120,0.307064,651.33,649.47,0.88242001]
[1746973339314,0.307064,651.33,649.47,2.06520069]
[1746973339512,0.307064,651.33,649.48,0.88242001]
[1746973339712,0.307064,651.33,649.49,1.18278068]
[1746973339916,0.307064,651.33,649.49,2.06520069]
[1746973340119,0.307064,651.33,649.5,0.88242001]
[1746973340418,0.307064,651.33,649.51,2.06520069]
[1746973340820,0.307064,651.33,649.52,0.88242001]
[1746973341119,0.307064,651.33,649.53,1.18278068]
[1746973341320,0.307064,651.33,649.54,0.88231794]
[1746973341723,0.307064,651.33,649.55,2.06509862]
[1746973342020,0.307064,651.33,649.56,1.18278068]
[1746973342423,0.307064,651.33,649.57,2.06509862]
[1746973342618,0.307064,651.33,649.58,1.18278068]
[1746973342921,0.307064,651.33,649.59,1.18278068]
[1746973343117,0.307064,651.33,649.6,0.88231794]
[1746973343318,0.307064,651.33,649.61,1.18278068]
[1746973343716,0.307064,651.33,649.61,2.06509862]
[1746973343923,0.307064,651.33,649.62,1.18278068]
[1746973344122,0.307064,651.33,649.63,0.2820394]
[1746973344417,0.307064,651.33,649.64,1.46482008]
[1746973344618,0.307064,651.33,649.65,1.46482008]
[1746973344920,0.307064,651.33,649.65,1.18278068]
[1746973345118,0.307064,651.33,649.66,0.88248537]
[1746973345519,0.307064,651.33,649.67,2.06526605]
[1746973345717,0.307064,651.33,649.68,1.18278068]
[1746973346023,0.307064,651.33,649.68,2.06526605]
[1746973346322,0.307064,651.33,649.69,1.18278068]
[1746973346718,0.307064,651.33,649.7,0.282095]
[1746973346918,0.307064,651.33,649.71,1.18278068]
[1746973347123,0.307064,651.33,649.71,1.46487568]
[1746973347418,0.307064,651.33,649.72,1.46487568]
[1746973347622,0.307064,651.33,649.73,0.282095]
[1746973347822,0.307064,651.33,649.74,1.18278068]
[1746973348424,0.307064,651.33,649.75,1.46487568]
[1746973348823,0.307064,651.33,649.76,0.282095]
[1746973349018,0.307064,651.33,649.76,1.46487568]
[1746973349220,0.307064,651.33,649.77,0.282095]
[1746973349518,0.307064,651.33,649.78,1.46487568]
[1746973349822,0.307064,651.33,649.79,0.282095]
[1746973350024,0.307064,651.33,649.8,1.18278068]
[1746973350220,0.307064,651.33,649.8,1.46487568]
[1746973350420,0.307064,651.33,649.81,1.18278068]
[1746973350622,0.307064,651.33,649.82,1.18278068]
[1746973351018,0.307064,651.33,649.83,1.18278068]
[1746973351221,0.307064,651.33,649.83,1.46487568]
[1746973351419,0.307064,651.33,649.84,1.46487568]
[1746973351823,0.307064,651.33,649.85,0.282095]
[1746973352017,0.307064,651.33,649.86,1.18278068]
[1746973352317,0.307064,651.33,649.86,1.46487568]
[1746973352518,0.307064,651.33,649.87,1.46487568]
[1746973352717,0.307064,651.33,649.88,1.18278068]
[1746973352922,0.307064,651.33,649.88,1.46487568]
[1746973353218,0.307064,651.33,649.89,1.18278068]
[1746973353423,0.307064,651.33,649.89,1.46487568]
[1746973353724,0.307064,651.33,649.9,1.46487568]
[1746973354123,0.307064,651.33,649.91,0.282095]
[1746973354318,0.307064,651.33,649.92,1.18278068]
[1746973354619,0.307064,651.33,649.93,0.282095]
[1746973354620,0.26718363,651.32,649.93,0.282095]
[1746973354817,0.30707815,651.3,649.93,1.46487568]
[1746973355022,0.30707815,651.3,649.94,0.282095]
[1746973355224,0.30707815,651.3,649.95,1.18278068]
[1746973355624,0.30707815,651.3,649.96,0.282095]
[1746973356024,0.30707815,651.3,649.97,1.46487568]
[1746973356325,0.30707815,651.3,649.98,1.46487568]
[1746973356623,0.30707815,651.3,649.99,0.282095]
[1746973356826,0.30707815,651.3,649.99,1.46487568]
[1746973357028,0.30707815,651.3,650.0,0.282095]
[1746973357227,0.30707815,651.3,650.01,1.46487568]
[1746973357728,0.30707815,651.3,650.02,1.46487568]
[1746973358329,0.30707815,651.3,650.03,0.282095]
[1746973358525,0.30707815,651.3,650.03,1.46487568]
[1746973358829,0.30707815,651.3,650.04,0.282095]
[1746973359027,0.30707815,651.3,650.05,1.18278068]
[1746973359225,0.30707815,651.3,650.05,1.46487568]
[1746973359527,0.30707815,651.3,650.06,1.46487568]
[1746973359828,0.30707815,651.3,650.07,0.282095]
[1746973360129,0.30707815,651.3,650.08,1.18278068]
[1746973360329,0.30707815,651.3,650.08,1.46487568]
[1746973360529,0.30707815,651.3,650.09,1.46487568]
[1746973360925,0.30707815,651.3,650.1,1.46487568]
[1746973361231,0.30707815,651.3,650.11,1.46487568]
[1746973361530,0.30707815,651.3,650.12,0.282095]
[1746973361731,0.30707815,651.3,650.13,1.18278068]
[1746973362034,0.30707815,651.3,650.13,1.46487568]
[1746973362332,0.30707815,651.3,650.14,1.18278068]
[1746973362528,0.30707815,651.3,650.14,1.46465932]
[1746973362725,0.30707815,651.3,650.15,1.18278068]
[1746973362928,0.30707815,651.3,650.15,1.46465932]
[1746973363134,0.30707815,651.3,650.16,1.46465932]
[1746973363632,0.30707815,651.3,650.16,1.18278068]
[1746973363833,0.30707815,651.3,650.17,1.18278068]
[1746973364028,0.30707815,651.3,650.17,1.46465709]
[1746973364229,0.30707815,651.3,650.18,1.18278068]
[1746973364427,0.30707815,651.3,650.18,1.46465709]
[1746973364626,0.30707815,651.3,650.19,1.18278068]
[1746973364832,0.30707815,651.3,650.19,1.46465709]
[1746973365028,0.30707815,651.3,650.2,1.46465709]
[1746973365430,0.30707815,651.3,650.21,1.46465709]
[1746973365833,0.30707815,651.3,650.22,0.28187641]
[1746973366236,0.30707815,651.3,650.23,1.46465709]
[1746973366534,0.30707815,651.3,650.23,1.18278068]
[1746973366727,0.30707815,651.3,650.24,1.18278068]
[1746973366929,0.30707815,651.3,650.24,1.46469816]
[1746973367331,0.30707815,651.3,650.25,1.46469816]
[1746973367730,0.30707815,651.3,650.26,1.46469816]
[1746973367930,0.30707815,651.3,650.27,1.46469816]
[1746973368331,0.30707815,651.3,650.28,0.28191748]
[1746973368536,0.30707815,651.3,650.29,1.18278068]
[1746973368838,0.30707815,651.3,650.3,1.18278068]
[1746973369036,0.30707815,651.3,650.3,1.46469816]
[1746973369338,0.30707815,651.3,650.31,1.46469816]
[1746973369733,0.30707815,651.3,650.32,1.46469816]
[1746973370040,0.30707815,651.3,650.33,0.28191748]
[1746973370237,0.30707815,651.3,650.34,1.18278068]
[1746973370533,0.30707815,651.3,650.35,1.18278068]
[1746973370838,0.30707815,651.3,650.36,1.46469816]
[1746973371139,0.30707815,651.3,650.37,0.28191748]
[1746973371435,0.30707815,651.3,650.38,1.18278068]
[1746973371640,0.30707815,651.3,650.38,1.46469816]
[1746973371837,0.30707815,651.3,650.39,1.18278068]
[1746973372035,0.30707815,651.3,650.39,1.46469816]
[1746973372235,0.30707815,651.3,650.4,1.18278068]
[1746973372540,0.30707815,651.3,650.41,1.18278068]
[1746973372740,0.30707815,651.3,650.41,1.46469567]
[1746973372938,0.30707815,651.3,650.42,0.28191499]
[1746973373240,0.30707815,651.3,650.42,1.46469567]
[1746973373541,0.30707815,651.3,650.43,1.46469567]
[1746973373940,0.30707815,651.3,650.44,0.28191499]
[1746973374144,0.30707815,651.3,650.45,1.18278068]
[1746973374544,0.30707815,651.3,650.46,0.28191499]
[1746973374843,0.30707815,651.3,650.47,1.18278068]
[1746973375039,0.30707815,651.3,650.48,1.18278068]
[1746973375439,0.30707815,651.3,650.49,1.18278068]
[1746973375643,0.30707815,651.3,650.5,1.18278068]
[1746973376042,0.30707815,651.3,650.51,1.18278068]
[1746973376246,0.30707815,651.3,650.51,1.46469567]
[1746973376544,0.30707815,651.3,650.52,0.28191499]
[1746973376945,0.30707815,651.3,650.53,1.18278068]
[1746973377438,0.30707815,651.3,650.54,1.46465391]
[1746973377643,0.30707815,651.3,650.55,1.18278068]
[1746973377845,0.30707815,651.3,650.56,0.28187323]
[1746973378146,0.30707815,651.3,650.57,1.18278068]
[1746973378644,0.30707815,651.3,650.58,1.18278068]
[1746973379043,0.30707815,651.3,650.59,1.18278068]
[1746973379339,0.30707815,651.3,650.59,1.46465391]
[1746973379645,0.30707815,651.3,650.6,1.46465391]
[1746973379946,0.30707815,651.3,650.61,1.46465391]
[1746973380246,0.30707815,651.3,650.62,0.28187323]
[1746973380546,0.30707815,651.3,650.63,1.18278068]
[1746973380846,0.30707815,651.3,650.64,0.28187323]
[1746973381040,0.30707815,651.3,650.65,1.18278068]
[1746973381241,0.30707815,651.3,650.66,1.18278068]
[1746973381548,0.30707815,651.3,650.66,0.28187323]
[1746973381845,0.30707815,651.3,649.28,1.45934148]
[1746973382041,0.30707815,651.3,649.28,2.0592862]
[1746973382245,0.30707815,651.3,649.29,2.0592862]
[1746973382542,0.30707815,651.3,649.3,1.17746825]
[1746973382741,0.30707815,651.3,649.31,1.17746825]
[1746973382947,0.30707815,651.3,649.32,0.28187323]
[1746973383146,0.30707815,651.3,649.33,1.17746825]
[1746973383346,0.30707815,651.3,649.33,1.45934148]
[1746973383648,0.30707815,651.3,649.38,0.97353024]
[1746973383848,0.30707815,651.3,649.39,1.17746825]
[1746973384150,0.30707815,651.3,649.4,0.28187323]
[1746973384447,0.30707815,651.3,649.41,1.45934148]
[1746973384646,0.30707815,651.3,649.42,1.17746825]
[1746973384846,0.30707815,651.3,649.43,0.28187323]
[1746973385243,0.30707815,651.3,649.44,0.28187323]
[1746973385546,0.30707815,651.3,649.45,0.28187323]
[1746973385746,0.30707815,651.3,649.46,1.17746825]
[1746973385944,0.30707815,651.3,649.46,1.45934148]
[1746973386142,0.30707815,651.3,649.47,1.17746825]
[1746973386346,0.30707815,651.3,649.47,1.45934148]
[1746973386743,0.30707815,651.3,649.48,0.28187323]
[1746973386947,0.30707815,651.3,649.48,1.45934148]
[1746973387145,0.30707815,651.3,649.49,0.28187323]
[1746973387346,0.30707815,651.3,649.5,1.17746825]
[1746973387541,0.30707815,651.3,649.5,1.45934148]
[1746973387847,0.30707815,651.3,649.51,0.28187323]
[1746973388048,0.30707815,651.3,649.52,1.17746825]
[1746973388347,0.30707815,651.3,649.52,1.45934148]
[1746973388547,0.30707815,651.3,649.53,0.28187323]
[1746973388748,0.30707815,651.3,649.54,1.17746825]
[1746973388947,0.30707815,651.3,649.54,1.45934148]
[1746973389344,0.30707815,651.3,649.55,1.45934148]
[1746973389848,0.30707815,651.3,649.56,1.45934148]
[1746973390249,0.30707815,651.3,649.57,1.45934148]
[1746973390551,0.30707815,651.3,649.58,0.28187323]
[1746973390848,0.30707815,651.3,649.59,1.45934148]
[1746973391145,0.30707815,651.3,649.6,0.28187323]
[1746973391445,0.30707815,651.3,649.61,0.28187323]
[1746973391749,0.30707815,651.3,649.62,0.28187323]
[1746973392043,0.30707815,651.3,649.63,1.45934148]
[1746973392550,0.30707815,651.3,649.64,0.28187323]
[1746973392752,0.30707815,651.3,649.64,1.45934148]
[1746973392952,0.30707815,651.3,649.65,0.88181795]
[1746973393146,0.30707815,651.3,649.66,2.0592862]
[1746973393550,0.30707815,651.3,649.67,2.0592862]
[1746973393851,0.30707815,651.3,649.68,0.88181795]
[1746973394051,0.30707815,651.3,649.69,1.17746825]
[1746973394352,0.30707815,651.3,649.69,2.0592862]
[1746973394547,0.30707815,651.3,649.82,0.97353024]
[1746973395051,0.30707815,651.3,649.83,2.0592862]
[1746973395448,0.30707815,651.3,649.84,2.0592862]
[1746973395752,0.30707815,651.3,649.85,0.88181795]
[1746973395950,0.30707815,651.3,649.85,2.0592862]
[1746973396149,0.30707815,651.3,649.86,0.88181795]
[1746973396354,0.30707815,651.3,649.87,2.0592862]
[1746973396752,0.30707815,651.3,649.88,0.88181795]
[1746973397048,0.30707815,651.3,649.89,1.17746825]
[1746973397451,0.30707815,651.3,649.89,2.0592862]
[1746973397653,0.30707815,651.3,649.9,1.17746825]
[1746973397848,0.30707815,651.3,649.9,2.0592862]
[1746973398048,0.30707815,651.3,649.91,0.88181795]
[1746973398253,0.30707815,651.3,649.92,1.17746825]
[1746973398447,0.30707815,651.3,649.92,2.0592862]
[1746973398752,0.30707815,651.3,649.93,0.88181795]
[1746973398953,0.30707815,651.3,649.94,1.17746825]
[1746973399155,0.30707815,651.3,649.94,2.0592862]
[1746973399355,0.30707815,651.3,649.95,1.77741297]
[1746973399549,0.30707815,651.3,649.95,2.0592862]
[1746973399748,0.30707815,651.3,649.96,2.0592862]
[1746973400055,0.30707815,651.3,649.97,0.88181795]
[1746973400354,0.30707815,651.3,649.98,1.17746825]
[1746973400654,0.30707815,651.3,649.98,2.0592862]
[1746973400853,0.30707815,651.3,649.99,1.17746825]
[1746973401049,0.30707815,651.3,649.99,2.0592862]
[1746973401355,0.30707815,651.3,650.0,2.0592862]
[1746973401650,0.30707815,651.3,650.01,0.88181795]
[1746973401850,0.30707815,651.3,650.02,1.17746825]
[1746973402052,0.30707815,651.3,650.02,1.45934148]
[1746973402256,0.30707815,651.3,650.03,0.28187323]
[1746973402555,0.30707815,651.3,650.03,1.45934148]
[1746973402954,0.30707815,651.3,650.04,1.45934148]
[1746973403256,0.30707815,651.3,650.05,1.17746825]
[1746973403457,0.30707815,651.3,650.05,1.45934148]
[1746973403751,0.30707815,651.3,650.06,1.45934148]
[1746973404157,0.30707815,651.3,650.07,0.28187323]
[1746973404456,0.30707815,651.3,650.08,0.28187323]
[1746973404656,0.30707815,651.3,650.09,1.17746825]
[1746973404957,0.30707815,651.3,650.1,1.45932085]
[1746973405459,0.30707815,651.3,650.11,0.2818526]
[1746973405657,0.30707815,651.3,650.12,1.45932085]
[1746973406258,0.30707815,651.3,650.13,0.2818526]
[1746973406457,0.30707815,651.3,650.14,1.17746825]
[1746973406657,0.30707815,651.3,650.15,0.2818526]
[1746973406958,0.30707815,651.3,650.16,0.2818526]
[1746973407254,0.30707815,651.3,650.16,1.45932085]
[1746973407453,0.30707815,651.3,650.17,1.45932085]
[1746973407758,0.30707815,651.3,650.18,1.17746825]
[1746973407958,0.30707815,651.3,650.19,0.2818526]
[1746973408159,0.30707815,651.3,650.18,1.17746825]
[1746973408654,0.30707815,651.3,649.35,0.97353024]
[1746973408655,0.30707815,651.3,650.19,1.45930985]
[1746973408860,0.30707815,651.3,650.2,1.45930985]
[1746973409261,0.30707815,651.3,650.21,1.45930985]
[1746973409461,0.30707815,651.3,650.21,1.17746825]
[1746973409663,0.30707815,651.3,650.22,1.45929299]
[1746973409962,0.30707815,651.3,650.23,1.17746825]
[1746973410161,0.30707815,651.3,650.23,1.45929299]
[1746973410558,0.30707815,651.3,650.24,1.45929299]
[1746973411062,0.30707815,651.3,650.25,1.45929299]
[1746973411361,0.30707815,651.3,650.26,0.28182474]
[1746973411564,0.30707815,651.3,650.27,1.17746825]
[1746973411757,0.30707815,651.3,650.28,0.28182474]
[1746973412057,0.30707815,651.3,650.29,1.45929299]
[1746973412463,0.30707815,651.3,650.3,0.28182474]
[1746973412658,0.30707815,651.3,650.3,1.45929299]
[1746973412857,0.30707815,651.3,650.31,0.28182474]
[1746973413159,0.30707815,651.3,650.32,1.45929299]
[1746973413362,0.30707815,651.3,650.33,1.17746825]
[1746973413563,0.30707815,651.3,650.33,1.45929299]
[1746973413758,0.30707815,651.3,650.34,1.17746825]
[1746973413963,0.30707815,651.3,650.34,1.45929299]
[1746973414163,0.30707815,651.3,650.35,1.17746825]
[1746973414362,0.30707815,651.3,650.36,0.28182474]
[1746973414763,0.30707815,651.3,650.37,1.45929299]
[1746973415065,0.30707815,651.3,650.38,0.28182474]
[1746973415263,0.30707815,651.3,650.39,1.17746825]
[1746973415566,0.30707815,651.3,650.39,1.45929299]
[1746973415765,0.30707815,651.3,650.4,1.17746825]
[1746973415965,0.30707815,651.3,650.4,1.45929299]
[1746973416366,0.30707815,651.3,650.41,1.45929299]
[1746973416666,0.30707815,651.3,650.42,0.28182474]
[1746973416866,0.30707815,651.3,650.42,1.45929299]
[1746973417066,0.30707815,651.3,650.43,1.17746825]
[1746973417468,0.30707815,651.3,650.44,0.28180425]
[1746973417870,0.30707815,651.3,650.45,1.17746825]
[1746973418369,0.30707815,651.3,650.46,0.28180425]
[1746973418568,0.30707815,651.3,650.45,1.17746825]
[1746973418870,0.30707815,651.3,650.47,1.17746825]
[1746973419172,0.30707815,651.3,650.48,0.28181691]
[1746973419864,0.30707815,651.3,650.49,1.17746825]
[1746973420170,0.30707815,651.3,650.5,0.28181691]
[1746973420872,0.30707815,651.3,650.51,1.17746825]
[1746973421171,0.30707815,651.3,650.52,0.28181691]
[1746973421672,0.30707815,651.3,650.53,1.17746825]
[1746973421873,0.30707815,651.3,650.54,0.28181691]
[1746973422173,0.30707815,651.3,650.55,1.17746825]
[1746973422476,0.30707815,651.3,650.56,0.28181691]
[1746973422675,0.30707815,651.3,650.57,1.17746825]
[1746973423173,0.30707815,651.3,650.58,0.28181691]
[1746973423473,0.30707815,651.3,650.59,1.17746825]
[1746973424273,0.30707815,651.3,650.6,0.28181691]
[1746973424774,0.30707815,651.3,650.61,1.17746825]
[1746973425074,0.30707815,651.3,650.62,0.28181691]
[1746973425275,0.30707815,651.3,650.63,1.17746825]
[1746973425673,0.30707815,651.3,650.64,0.28181691]
[1746973426076,0.30707815,651.3,650.65,1.17746825]
[1746973426275,0.30707815,651.3,650.66,0.28181691]
[1746973426570,0.30707815,651.3,650.67,1.17746825]
[1746973426874,0.30707815,651.3,650.68,0.28181691]
[1746973427077,0.30707815,651.3,650.69,1.17746825]
[1746973427275,0.30707815,651.3,650.7,0.28181691]
[1746973427576,0.30707815,651.3,650.71,1.17746825]
[1746973427975,0.30707815,651.3,650.72,0.28181691]
[1746973428275,0.30707815,651.3,650.73,1.17746825]
[1746973428873,0.30707815,651.3,650.74,0.28181691]
[1746973429171,0.30707815,651.3,650.75,1.17746825]
[1746973429873,0.30707815,651.3,650.76,0.28181691]
[1746973430177,0.30707815,651.3,650.77,1.17746825]
[1746973430372,0.30707815,651.3,650.78,0.28181691]
[1746973430572,0.30707815,651.3,650.79,1.17746825]
[1746973431177,0.30707815,651.3,650.8,0.28181691]
[1746973431376,0.30707815,651.3,650.81,1.17746825]
[1746973431777,0.30707815,651.3,650.82,0.28181691]
[1746973432079,0.30707815,651.3,650.83,1.17746825]
[1746973432278,0.30707815,651.3,650.83,1.45928516]
[1746973432576,0.30707815,651.3,650.84,1.45928516]
[1746973433077,0.30707815,651.3,650.85,1.45928516]
[1746973433572,0.30707815,651.3,650.86,1.45928516]
[1746973433872,0.30707815,651.3,650.87,0.28181691]
[1746973434276,0.30707815,651.3,650.88,1.45928516]
[1746973434779,0.30707815,651.3,650.89,1.45928516]
[1746973435178,0.30707815,651.3,650.9,1.17746825]
[1746973435381,0.30707815,651.3,650.91,1.17746825]
[1746973435773,0.30707815,651.3,650.92,0.28181691]
[1746973435981,0.30707815,651.3,650.93,0.28181691]
[1746973436181,0.30707815,651.3,650.94,1.17746825]
[1746973436382,0.30707815,651.3,650.95,1.17746825]
[1746973436675,0.30707815,651.3,650.96,1.45928516]
[1746973436976,0.30707815,651.3,650.97,0.28181691]
[1746973437178,0.30707815,651.3,650.98,1.17746825]
[1746973437773,0.30707815,651.3,650.99,1.17746825]
[1746973437975,0.30707815,651.3,651.0,1.17746825]
[1746973438173,0.30707815,651.3,651.01,1.17746825]
[1746973438377,0.30707815,651.3,651.02,0.28171239]
[1746973438680,0.30707815,651.3,651.03,1.17746825]
[1746973439179,0.30707815,651.3,651.04,1.45917743]
[1746973439380,0.30707815,651.3,651.05,0.28170918]
[1746973439783,0.30707815,651.3,651.06,1.17746825]
[1746973440080,0.30707815,651.3,651.07,0.28170918]
[1746973440281,0.30707815,651.3,651.08,1.17746825]
[1746973440781,0.30707815,651.3,651.09,1.45917743]
[1746973441076,0.30707815,651.3,651.1,0.28170918]
[1746973441280,0.30707815,651.3,651.11,1.17746825]
[1746973441581,0.30707815,651.3,651.12,1.45917743]
[1746973441881,0.30707815,651.3,651.13,0.28170918]
[1746973442076,0.30707815,651.3,651.13,1.45917743]
[1746973442281,0.30707815,651.3,651.14,1.45917743]
[1746973442583,0.30707815,651.3,651.15,0.28170918]
[1746973442776,0.30707815,651.3,651.16,1.17746825]
[1746973442977,0.30707815,651.3,651.17,1.17746825]
[1746973443483,0.30707815,651.3,651.18,1.45917743]
[1746973443783,0.30707815,651.3,651.19,1.17746825]
[1746973443984,0.30707815,651.3,651.19,1.45913819]
[1746973444176,0.30707815,651.3,651.2,1.45913819]
[1746973444377,0.30707815,651.3,651.21,1.17746825]
[1746973444678,0.30707815,651.3,651.22,1.45913819]
[1746973444978,0.30707815,651.3,651.23,1.17746825]
[1746973445279,0.30707815,651.3,651.24,1.17746825]
[1746973445578,0.30707815,651.3,651.25,1.17746825]
[1746973445778,0.30707815,651.3,651.25,1.45913819]
[1746973445982,0.30707815,651.3,651.26,1.17746825]
[1746973446184,0.30707815,651.3,651.26,1.45913819]
[1746973446379,0.30707815,651.3,649.7,0.97353024]
[1746973446380,0.30707815,651.3,651.27,1.45913819]
[1746973446580,0.30707815,651.3,651.28,1.17746825]
[1746973446879,0.30707815,651.3,651.29,1.45913819]
[1746973450183,0.30707815,651.3,651.29,0.28166994]
[1746973450387,0.30707815,651.3,651.29,1.45119125]
[1746973450985,0.30707815,651.3,651.29,1.16952131]
[1746973451585,0.30707815,651.3,651.29,1.45114814]
[1746973456586,0.30707815,651.3,651.29,1.44850931]
[1746973457989,0.0255069,651.3,651.29,1.44850931]
[1746973458281,0.30695561,651.56,651.29,1.44850931]
[1746973458485,0.30695561,651.56,651.3,1.16688248]
[1746973459187,0.30695561,651.56,651.31,1.44850931]
[1746973459584,0.30695561,651.56,651.32,1.16688248]
[1746973459785,0.30695561,651.56,651.33,0.28162683]
[1746973459983,0.30695561,651.56,651.34,1.16688248]
[1746973460382,0.30695561,651.56,651.35,1.44843646]
[1746973460687,0.30695561,651.56,651.36,1.16688248]
[1746973460886,0.30695561,651.56,651.36,1.44843646]
[1746973461287,0.30695561,651.56,651.37,1.44843646]
[1746973461482,0.30695561,651.56,651.38,1.16688248]
[1746973461682,0.30695561,651.56,651.38,1.44843646]
[1746973461888,0.30695561,651.56,651.39,0.28155398]
[1746973462184,0.30695561,651.56,651.4,1.16688248]
[1746973462483,0.30695561,651.56,651.41,0.28155398]
[1746973462687,0.30695561,651.56,651.42,1.16688248]
[1746973462886,0.30695561,651.56,651.42,1.44843646]
[1746973463084,0.30695561,651.56,651.43,1.16688248]
[1746973463382,0.30695561,651.56,651.43,1.44843646]
[1746973463585,0.30695561,651.56,651.44,1.16688248]
[1746973463783,0.30695561,651.56,651.44,1.44843646]
[1746973463985,0.30695561,651.56,651.45,1.16688248]
[1746973464185,0.30695561,651.56,651.45,1.44843646]
[1746973464589,0.30695561,651.56,651.46,1.16688248]
[1746973464788,0.30695561,651.56,651.46,1.44843646]
[1746973465088,0.30695561,651.56,651.47,1.44843646]
[1746973465489,0.30695561,651.56,651.48,0.28155398]
[1746973465685,0.30695561,651.56,651.49,1.16688248]
[1746973465887,0.30695561,651.56,651.49,1.44843646]
[1746973466084,0.30695561,651.56,651.5,1.16688248]
[1746973466287,0.30695561,651.56,651.51,1.16688248]
[1746973466487,0.30695561,651.56,651.52,0.28155398]
[1746973466689,0.30695561,651.56,651.53,1.16688248]
[1746973466888,0.30695561,651.56,651.54,1.16688248]
[1746973467189,0.30695561,651.56,651.55,1.44843646]
[1746973468692,0.30695561,651.56,651.55,1.16688248]
[1746973469188,0.30695561,651.56,651.55,1.44839191]
[1746973474897,0.30695561,651.56,651.55,1.16688248]
[1746973475098,0.30695561,651.56,651.55,1.16351979]
[1746973475300,0.30695561,651.56,651.55,1.44503858]
[1746973475695,0.30695561,651.56,651.55,0.28151879]
[1746973476095,0.30695561,651.56,650.45,0.85382972]
[1746973476599,0.30695561,651.56,650.46,0.85382972]
[1746973476998,0.30695561,651.56,650.47,0.85382972]
[1746973477299,0.30695561,651.56,650.48,0.85382972]
[1746973477999,0.30695561,651.56,650.49,0.85382972]
[1746973478401,0.30695561,651.56,650.4,0.26689163]
[1746973478402,0.30695561,651.56,650.5,0.85382972]
[1746973478798,0.30695561,651.56,650.51,0.85382972]
[1746973479196,0.30695561,651.56,650.52,0.85382972]
[1746973479601,0.30695561,651.56,650.53,0.85382972]
[1746973480201,0.30695561,651.56,650.54,0.85382972]
[1746973480702,0.30695561,651.56,650.55,0.85382972]
[1746973481103,0.30695561,651.56,650.56,0.85382972]
[1746973481397,0.30695561,651.56,650.57,0.85382972]
[1746973481802,0.30695561,651.56,650.58,0.85382972]
[1746973482098,0.30695561,651.56,650.59,0.85382972]
[1746973482606,0.30695561,651.56,650.6,0.85382972]